Cogmind - Beta 12 *** ADVENTURER MODE // 2023.07.01 @ 19:15:08 Player: PionFour Result: Destroyed by 8R-AWN with 8R-AWN's Boregun Performance ------------- Evolutions (0) 0 Regions Visited (2) 400 Robots Destroyed (12) 60 Value Destroyed (94) 94 Prototype IDs (4) 80 Alien Tech Used (0) 0 Bonus (-3) -3 TOTAL SCORE: 631 Bonus ------- Friendly Fire -3 Cogmind --------- Core Integrity 0/250 Matter 136/300 Energy 250/250 System Corruption 0% Temperature Warm (108) Movement Rolling (95) Ox1 Location -10/Mines Parts ------- > --- POWER (1) -------- Ion Engine > --- PROPULSION (2) --- Wheel > --- UTILITY (2) ------ Improved Terrain Scanner > --- WEAPON (2) ------- Beam Rifle Shotgun > --- INVENTORY (5) ---- Light Nuclear Core High-capacity Storage Unit Signal Interpreter Particle Gun Grenade Launcher Peak State ------------ > --- POWER ------------ Ion Engine > --- PROPULSION ------- Wheel Wheel > --- UTILITY ---------- Large Storage Unit Improved Terrain Scanner > --- WEAPON ----------- Beam Rifle Beam Rifle > --- INVENTORY -------- Light Ion Engine Wheel Wheel High-capacity Storage Unit Structural Scanner Signal Interpreter Signal Interpreter Seismic Detector Light Armor Plating EM Pulse Gun Shotgun Shotgun Grenade Launcher Mining Laser [Rating: 12] Favorites ----------- Power Ion Engine Engine Ion Engine Propulsion Wheel Leg Aluminum Leg Wheel Wheel Hover Unit Hover Unit Utility Transport Network Coupler Device Improved Terrain Scanner Storage Large Storage Unit Processor Transport Network Coupler Protection Light Armor Plating Weapon Beam Rifle Energy Gun Beam Rifle Ballistic Gun Shotgun Launcher Grenade Launcher Build | -11 -10 -10 ------- Run | Jun Mat Min Slots Evolved . | . . . Power . | . . . Propulsion . | . . . Utility . | . . . Weapon . | . . . Parts Attached 36 | 2 19 15 Power 3 | . 1 2 Engine 3 | . 1 2 Core . | . . . Reactor . | . . . Propulsion 13 | . 9 4 Treads . | . . . Leg . | . . . Wheel 11 | . 7 4 Hover 2 | . 2 . Flight . | . . . Utility 8 | 2 3 3 Device 4 | 2 . 2 Storage 2 | . 2 . Processor 1 | . 1 . Hackware . | . . . Protection 1 | . . 1 Artifact . | . . . Weapon 12 | . 6 6 Energy Gun 7 | . 5 2 Energy Cannon . | . . . Ballistic Gun 2 | . 1 1 Ballistic Cannon . | . . . Launcher 3 | . . 3 Special Weapon . | . . . Impact Weapon . | . . . Slashing Weapon . | . . . Piercing Weapon . | . . . Special Melee Weapon . | . . . Unidentified Prototypes . | . . . Parts Lost 11 | . . 11 Power 2 | . . 2 Propulsion 5 | . . 5 Utility 1 | . . 1 Weapon 3 | . . 3 Highest Loss Streak 7 | . . 7 To Critical Strikes 5 | . . 5 Average Slot Usage (%) 92 | . 99 79 Engine 13 | . 14 13 Leg 2 | . 4 . Wheel 23 | . 23 22 Device 4 | . 1 11 Storage 11 | . 14 7 Processor 8 | . 12 . Energy Gun 22 | . 27 14 Launcher 1 | . . 4 Naked Turns . | . . . Heaviest Build 33 | 12 31 33 Greatest Support 26 | 20 20 26 Greatest Overweight (x) 4 | . 4 3 Average Overweight (x) . | . . . Largest Inventory Capacity 15 | 8 15 15 Average Capacity 11 | 8 12 10 Most Carried 15 | 8 15 15 Average Carried 10 | 6 11 7 Final Capacity 15 | 8 15 5 Final Carried 15 | 7 15 5 Class Distribution -------------------- 100% | Mutant Dominant Class ---------------- Mutant | -10/Materials Mutant | -10/Mines Resources | -11 -10 -10 ----------- Run | Jun Mat Min Matter Collected 493 | 210 200 83 Remotely . | . . . Salvage Created 336 | 39 277 20 Parts 31 | 7 23 1 Haulers Intercepted 2 | . 2 . Recyclers Shooed . | . . . Parts Field Recycled . | . . . Retrieved Matter . | . . . Parts Self-Destructed . | . . . Prevented . | . . . Kills | -11 -10 -10 ------- Run | Jun Mat Min Combat Hostiles Destroyed 4 | . 3 1 Guns 4 | . 3 1 Classes Destroyed 5 | 1 4 . Worker 1 | . 1 . Builder 3 | . 3 . Tunneler 2 | 2 . . Hauler 2 | . 2 . Swarmer 4 | . 3 1 Best Kill Streak 3 | 1 3 1 Combat Bots Only 3 | . 3 1 Max Kills in Single Turn 1 | 1 1 1 Gunslinging . | . . . Exploded . | . . . Melee . | . . . Uniques/NPCs Destroyed . | . . . Combat | -11 -10 -10 -------- Run | Jun Mat Min Damage Taken 1027 | . 67 960 Core 251 | . 19 232 Absorbed by Shields . | . . . Core Remaining (%) 100 | 100 . . Volleys Fired 49 | 2 20 27 Largest 2 | 2 2 2 Hottest 112 | 80 112 112 Shots Fired 92 | 4 40 48 Gun 80 | 4 40 36 Cannon . | . . . Launcher 12 | . . 12 Special . | . . . Kinetic 8 | . . 8 Thermal 42 | 2 21 19 Explosive 12 | . . 12 Electromagnetic 30 | 2 19 9 Robot Hit Streak 36 | 3 15 36 Robot Miss Streak 2 | . 1 2 Penetration Max . | . . . Secondary Targets . | . . . Shots Hit Robots 78 | 3 32 43 Core Hits 17 | 2 11 4 Critical Kills . | . . . Critical Parts Destroyed . | . . . Critical Strikes 1 | . . 1 Burn 1 | . . 1 Melee Attacks . | . . . Impact . | . . . Slashing . | . . . Piercing . | . . . Sneak Attacks . | . . . Combat Hostiles . | . . . Follow-up Attacks . | . . . Damage Inflicted 658 | 38 397 223 Guns 623 | 38 397 188 Cannons . | . . . Explosions 35 | . . 35 Melee . | . . . Ramming . | . . . Kinetic 148 | . . 148 Thermal 243 | 12 196 35 Explosive 31 | . . 31 Electromagnetic 236 | 26 201 9 Impact . | . . . Slashing . | . . . Piercing . | . . . Highest Corruption . | . . . Average Corruption . | . . . Corruption Purged . | . . . Corruption Blocked . | . . . Overload Shots . | . . . Overflow Damage . | . . . Projectiles . | . . . Explosions . | . . . Melee . | . . . Knockbacks . | . . . Impact . | . . . Kinetic . | . . . Secondary . | . . . Self-Inflicted Damage 20 | . . 20 Shots 1 | . . 1 Rammed . | . . . Targets Rammed . | . . . Kicked . | . . . Crushed . | . . . Highest Temperature 343 | 18 90 343 Average Temperature 72 | 12 39 109 Received Heat Transfer 18 | . 18 . Siege Activations . | . . . Robots Corrupted . | . . . Combat Hostiles . | . . . Parts Fried . | . . . Impact Corruptions . | . . . Robots Melted . | . . . Combat Hostiles . | . . . Parts Melted . | . . . Heat Transferred 705 | 25 460 220 Parts Sabotaged . | . . . Parts Stolen . | . . . Parts Stripped . | . . . Power Chain Reactions . | . . . Missiles Intercepted . | . . . Alert | -11 -10 -10 ------- Run | Jun Mat Min Peak Influence 140 | 10 140 91 Initial 23 | . 5 23 Average 46 | 5 54 37 Maximum Alert Level . | . . . Low Security (%) 100 | 100 100 100 Level 1 . | . . . Level 2 . | . . . Level 3 . | . . . Level 4 . | . . . Level 5 . | . . . High Security . | . . . Max Security . | . . . Squads Dispatched 3 | . 3 . Investigation 3 | . 3 . Extermination . | . . . Reinforcement . | . . . Assault . | . . . Garrison . | . . . Intercept . | . . . Searches Triggered . | . . . Construction Impeded . | . . . Haulers Reinforced . | . . . Active Scanning Responses . | . . . Cargo Convoy Interrupts . | . . . Stealth | -11 -10 -10 --------- Run | Jun Mat Min Distress Signals 2 | . 2 . Communications Jammed . | . . . Distress Signals . | . . . Times Spotted 13 | . 6 7 Peak Tracking Total 3 | . 3 2 Tactical Retreats 6 | . 2 4 Traps | -11 -10 -10 ------- Run | Jun Mat Min Traps Triggered 1 | . 1 . Indirectly . | . . . Trap Hack Attempts . | . . . Triggered . | . . . Disarmed . | . . . Reprogrammed . | . . . Reused 5 | . . 5 Traps Extracted . | . . . Installed 5 | . . 5 Triggered . | . . . Most Traps Carried 5 | . . 5 Machines | -11 -10 -10 ---------- Run | Jun Mat Min Machines Disabled 2 | . . 2 Max in Single Turn 2 | . . 2 Machines Repaired . | . . . Machines Sabotaged . | . . . Overloaded Fab Kills . | . . . Hacking | -11 -10 -10 --------- Run | Jun Mat Min Machines Accessed 8 | . 8 . Terminals 7 | . 7 . Fabricators . | . . . Repair Stations . | . . . Recycling Units 1 | . 1 . Scanalyzers . | . . . Garrison Access . | . . . Total Hacks 24 | . 24 . Successful 16 | . 16 . Failed 8 | . 8 . Catastrophic 1 | . 1 . Database Lockouts . | . . . Manual 12 | . 12 . Terminals 23 | . 23 . Fabricators . | . . . Repair Stations . | . . . Recycling Units 1 | . 1 . Scanalyzers . | . . . Garrison Access . | . . . Terminal Hacks 15 | . 15 . Robot Analysis 1 | . 1 . Prototype ID Bank 3 | . 3 . Branch Access Points 1 | . 1 . Terminal Index 1 | . 1 . Alert Level 3 | . 3 . Locate Traps 2 | . 2 . Dispatch Records 1 | . 1 . Investigation Status 1 | . 1 . Hauler Manifests 1 | . 1 . Registered Components 1 | . 1 . Fabricator Hacks . | . . . Repair Station Hacks . | . . . Recycling Unit Hacks 1 | . 1 . Report Inventory 1 | . 1 . Scanalyzer . | . . . Garrison Access Hacks . | . . . Unauthorized Hacks . | . . . Terminals . | . . . Fabricators . | . . . Repair Stations . | . . . Recycling Units . | . . . Scanalyzers . | . . . Garrison Access . | . . . Data Cores Recovered . | . . . Used . | . . . Hacking Detections 6 | . 6 . Full Trace Events 2 | . 2 . Feedback Events . | . . . Feedback Blocked . | . . . Robot Schematics Acquired . | . . . Robots Built . | . . . Authchips . | . . . Time . | . . . Total Robot Build Rating . | . . . Part Schematics Acquired . | . . . Parts Built . | . . . Authchips . | . . . Time . | . . . Total Part Build Rating . | . . . Parts Repaired . | . . . Time . | . . . Parts Recycled . | . . . Recycled Matter . | . . . Retrieved Matter . | . . . Retrieved Components . | . . . Parts Scanalyzed . | . . . Part Schematics Acquired . | . . . Parts Damaged . | . . . Bothacking | -11 -10 -10 ------------ Run | Jun Mat Min Used RIF Installer . | . . . Robots Hacked . | . . . Non-combat . | . . . Combat . | . . . Robot Hacks Applied . | . . . Relay Couplers Released . | . . . Fabnet Peak Effective % . | . . . Robots Rewired . | . . . Allies Hacked . | . . . Hacks Repelled . | . . . Allies | -11 -10 -10 -------- Run | Jun Mat Min Total Allies 3 | . . 3 Largest Group 3 | . . 3 Highest-Rated Group 40 | . . 40 Highest-Rated Ally 16 | . . 16 Total Orders . | . . . Ally Attacks 16 | . . 16 Total Damage 11 | . . 11 Kills . | . . . Allies Corrupted . | . . . Allies Melted . | . . . Intel | -11 -10 -10 ------- Run | Jun Mat Min Robot Analysis Total 1 | . 1 . Derelict Logs Recovered . | . . . Drone Launches . | . . . Drone Recoveries . | . . . Exploration | -11 -10 -10 ------------- Run | Jun Mat Min Turns Passed 1138 | 68 685 385 Spaces Moved 862 | 34 568 260 Core 3 | . . 3 Treads . | . . . Legs 102 | 34 68 . Wheels 756 | . 499 257 Hover 1 | . 1 . Flight . | . . . Fastest Speed 80 | 120 80 90 Average Speed 99 | 120 98 96 Slowest Speed 305 | 120 305 125 Overloaded Moves . | . . . Propulsion Burnouts . | . . . Robots Hopped . | . . . Cave-ins Triggered . | . . . Exploration Rate (%) 54 | 4 93 67 Regions Visited 2 Branch Regions 1 Pre-discovered Areas . | . . . Known Exits Taken 1 | . 1 . Unknown Exits Taken 1 | 1 . . Scrap Searched . | . . . Spaces Dug . | . . . Terrain Destroyed 51 | . . 51 Melee . | . . . Projectile . | . . . AOE 51 | . . 51 Terrain Rammed . | . . . Walls Destroyed . | . . . Machines Disabled . | . . . Actions | -11 -10 -10 --------- Run | Jun Mat Min Total 1062 | 57 657 348 Wait 43 | 17 8 18 Move 860 | 33 567 260 Hop . | . . . Pick Up 33 | 2 21 10 Fast Attach 7 | . 4 3 Attach 16 | 2 5 9 Detach 3 | 1 1 1 Swap 13 | . 10 3 Drop 33 | . 21 12 Fire 49 | 2 20 27 Melee . | . . . Ram . | . . . Kick . | . . . Crush . | . . . Escape Stasis . | . . . Rewire . | . . . Trap 5 | . . 5 Miscellaneous . | . . . Route ------- -11/Junkyard -10/Materials (discovered 5 exits: [*Mat x3] / *Min x2) -10/Mines History --------- Turn | Location | Event 1 | -11/Junkyard | Discovered new exit (range 2) 69 | -11/Junkyard | Entered Materials 199 | -10/Materials | Discovered new exit (range 14) 222 | -10/Materials | Identified exit to Mines 257 | -10/Materials | Met 8R-AWN 318 | -10/Materials | Discovered new exit (range 11) 323 | -10/Materials | Build established: Mutant 382 | -10/Materials | Discovered new exit (range 16) 520 | -10/Materials | Discovered new exit (range 15) 754 | -10/Materials | Entered Mines 755 | -10/Mines | Followed 8R-AWN into the Mines 796 | -10/Mines | Met a Derelict bent on vengeance 802 | -10/Mines | Found a hidden stash of uninstalled traps 814 | -10/Mines | Attacked by 8R-AWN 908 | -10/Mines | Core integrity fell below 50% 961 | -10/Mines | Lost 7 parts (1p3n1u2w) 1036 | -10/Mines | Lost 3 parts (1p1n1w) 1042 | -10/Mines | Assisted by bots powering up and referring to "LRC-V3" 1118 | -10/Mines | Core integrity fell below 20% 1139 | -10/Mines | Destroyed by 8R-AWN with 8R-AWN's Boregun Last Messages --------------- HV Slug penetrates Wall. Penetrated by HV Slug. Com. Wheel destroyed. HV Slug penetrates Wall. Penetrated by HV Slug. HV Slug penetrates Wall. HV Slug penetrates Mercenary 1a. Mercenary 1a destroyed. HV Slug penetrates Trooper 1a. Trooper 1a suffers critical hit (Destroy). Trooper 1a destroyed. Penetrated by HV Slug. HV Slug penetrates Wall. K-01 Serf suffers critical hit (Destroy). Penetrated by HV Slug. HV Slug penetrates K-01 Serf. K-01 Serf destroyed. Penetrated by HV Slug. 8R-AWN suffers critical hit (Burn). Penetrated by HV Slug. Map ----- +----------------------------------------------------+ | ?????????????????????????????????# ##???? | | ?????????????????????????????????# #???? | | ????????????????????????????????## #???? | | ???????????????????????????????## #?#?? | | ???????????????????????????????# #???? | | ???????????????????????????????# ##???# | | ???????????????????????????????## ## ##????? | | ????????????????????????#???????###?## #?????? | | ?????????????????????????????????????## ##????? | | ?????????????????????#????????????????# ##?#?? | | ?????????????????????#???#??????????#?# ###?? | | ?????????????????????????????#?????#??## #??? | | ????????????????????##????????????#????#### #??? | | ?????????????#??????????#?????????#??#?#??## ##?? | | ?????????????# ????#####??????????????????## #?#? | | ?????????????# ???# #??#????? #??######## #??? | | ?????????????# #### ##??################# #### | | ?????????????# ## ##?# ## | | ????????????## # #?# """ " " ## #### | | ???????????#?## #?# """ "" # #? | | ???????? ????# ##?# """ "" ## #### | | ?????? ???# #??# ## # | | ??????? ??# ## ##### """ """ ## | | ???????? ??## ### ##%% """ """ " ## | | ????????# ??###??# ##!##! """ """ """ ### | | ?????????# #??????# gg@;; *%!*%! #?## | | ??????????# ##????# =##### =*= #??## | | ???????????# #?#?#" ##??#################?#### | | ??????????## ???# ##??????#??#############" | | ???????????# #### ##????????# ^^^^ | | ???????????# #???????## ############# | | ???????????# #?????#" ######?##???? | | ??????????# ## ### #???#"# #??????? | | ?????????# ???# #?#### #### #??#???? | | ???????# ??????# #?????# ########??#=#??????? | | ????????????????# #?????? #???????? ######## | | ????????????????# ####?#? #??#? ?? = | | ????????????????# #????#? ##?##?#? ##"#### | | ????????????????# #?????#? #?????? ##????# | | ????????????????# #???#??? ##????? #????? | | ???????????????## #?????#?####???## ##???? | | ???????#????????# #????????????? ###?? | | ?????????????#??# ##????#??????# * ### | | ??????????????#?# #????????#?## =% | | ????????????????# #??####???## ! | | ?????????######## #?## ##?## | | ?? $ ### ### !! ########## | | ????????######### ## ! ###???????? | | ?????????????#??# * ##?????????? | | ?????????????#?# ####%! #??????????? | +----------------------------------------------------+ Best States ------------- Heat Dissipation 25 Energy Generation 10 Energy Capacity 250 Matter Stores 300 Matter Capacity 300 Sight Range 16 Terrain Scan Range 16 Terrain Scan Density 10 Armor Coverage 150 Resistance: KI 20 Resistance: TH 20 Resistance: EX 20 Resistance: EM 20 Resistance: I 20 Resistance: S 20 Resistance: P 20 Evasion (%) 55 Offensive Hacking 10 Item Schematics ----------------- None Robot Schematics ------------------ None Fabricated ------------ Nothing Alien Tech Used ----------------- None Achievements -------------- root@ Challenges ------------ None Game ------ Seed RocketGreatMicrothruster Manual? 0 Play Time 00:31:58 Cumulative 53.3 hours Start 2023.07.01 @ 18:43:33 End 2023.07.01 @ 19:15:08 Sessions 1 Manual Loads 0 Difficulty Adventurer Special Mode None Game No. 16 Rogue 12 Adventurer 3 Explorer 1 Win Type - Total 2 Types 2/0/0/0/0/0/0/0/0 Lore% 27 Gallery% 44 Achievement% 39 Wizard Run 0 Options --------- ASCII 0 Keyboard 0 Movement Mouse Keybinds 0 Fullscreen 1 Font 18/SmallcapsGlow Map View 76x50 Tactical HUD 0 Map Filters NONE Filters NONE Steam 1 RUN: a4508c2d-2b3b-469e-9dd7-bb428712afe1